Workbook

Sheet Инструкция
E2: FORMA4.BUHG.2011
B4: Инструкция по заполнению шаблона "Отчет о движении денежных средств"
C7: Технические требования: • макросы во время работы должны быть включены
C8: • на рабочем месте должен быть установлен MS Office 2007, 2010, 2013 с полной версией MS Excel
C9: • макросы во время работы должны быть включены
C10: • для корректной работы шаблона требуется выбрать низкий уровень безопасности (В MS Excel 2007 после открытия файла шаблона нажать на кнопку «Параметры…» → «Предупреждение системы безопасности» → «Включить это содержимое» → «OK»)
D11: Цвета ячеек:
D12: ● | E12: Голубой – ячейки, обязательные для заполнения;
D13: ● | E13: Желтый – ячейки, предназначенные для заполнения;
D14: ● | E14: Зеленый – ячейки с формулами/константами или заполняемые автоматически (например, при выборе организации из реестра или выборе даты).
D16: Пояснение к заполнению (необходимо нажать один раз).
C18: Шаблон может быть сохранен на любом этапе заполнения!
C19: • При сохранении шаблона осуществляется проверка на наличие и корректность (например, КПП – 9 цифр) обязательных параметров на листах.
C20: • Если какая-то ячейка не удовлетворяет условию проверки, на лист «Проверка» добавляется гиперссылка на данную ячейку и причина, по которой шаблон не будет загружен в хранилище данных.
C21: • В колонке «Статус ошибки» для каждого сообщения возможны 2 значения: ошибка и предупреждение.
C22: • При наличии сообщений со статусом «Ошибка» шаблон будет отклонён системой, сообщения со статусом «Предупреждение» носят информационный характер, и такой шаблон будет принят системой.
C23: Организационно-технические консультации:
C24: ФИО:
C25: телефон:
C26: e-mail:
C27: WEB-сайт:
C28: Комментарий
C29: Дистрибутивы:
C30: Дистрибутивы (ссылка):
C32: Консультации по методологии заполнения форм:
C33: ФИО:
C34: телефон:
C35: e-mail:
C36: WEB-сайт:
C37: Комментарий
B40: Список сокращений
C43: Сокращение | E43: Расшифровка | F43: Данные
C44: 1 | E44: 2 | F44: 3
C45: ОКПО | E45: Общероссийский классификатор предприятий и организаций
C46: ОКВЭД | E46: Общероссийский классификатор видов экономической деятельности | F46: http://www.gmcgks.ru/new_page_96.htm
C47: ОКАТО | E47: Общероссийский классификатор объектов административно-территориального деления | F47: http://www.gmcgks.ru/new_page_87.htm
C48: ОКОГУ | E48: Общероссийский классификатор органов государственной власти и управления | F48: http://www.gmcgks.ru/new_page_77.htm
C49: ОКОПФ | E49: Общероссийский классификатор организационно-правовых форм | F49: http://www.gmcgks.ru/new_page_95.htm
C50: ОКФС | E50: Общероссийский классификатор форм собственности | F50: http://www.gmcgks.ru/new_page_94.htm
C51: ОКУД | E51: Общероссийский классификатор управленческой документации | F51: http://www.gmcgks.ru/new_page_80.htm
C52: ОКЕИ | E52: Общероссийский классификатор единиц измерения | F52: http://www.gmcgks.ru/new_page_83.htm
C53: ОКТМО | E53: Общероссийский классификатор территорий муниципальных образований | F53: http://www.gks.ru/metod/classifiers.html

Sheet Обновление (hidden)
O2: =version -> 0
C3: Инструкция по обновлению шаблона
C24: Если компьютер имеет подключение к Интернет, можно автоматически проверять наличие доступных обновлений. Выберите способ оповещения о наличии обновлений для шаблона:

Sheet Лог обновления (hidden)
A1: Дата/Время | B1: Сообщение | C1: Статус
A2: 3/8/2013 6:28:46 PM | B2: Проверка доступных обновлений... | C2: Информация
A3: 3/8/2013 6:28:48 PM | B3: Версия шаблона 2.1 актуальна, обновление не требуется | C3: Информация
A4: 11/3/2016 2:47:08 AM | B4: Проверка доступных обновлений... | C4: Информация
A5: 11/3/2016 2:47:11 AM | B5: Версия шаблона 2.2 актуальна, обновление не требуется | C5: Информация
A6: 11/3/2016 2:53:36 AM | B6: Проверка доступных обновлений... | C6: Информация
A7: 11/3/2016 2:53:38 AM | B7: Версия шаблона 2.2 актуальна, обновление не требуется | C7: Информация
A8: 11/10/2016 12:05:11 PM | B8: Проверка доступных обновлений... | C8: Информация
A9: 11/10/2016 12:05:12 PM | B9: Версия шаблона 2.2 актуальна, обновление не требуется | C9: Информация

Sheet Титульный
J2: 01.01.2016
B4: Отчет о движении денежных средств
B6: Приложение к Приказу Минфина РФ от 02.07.2010 № 66н (в ред. Приказов Минфина России от 05.10.2011 №124н, от 17.08.2012 №113н, от 04.12.2012 №154н)
C8: Создать печатную форму
C9: Регион РФ | D9: Рязанская область
C11: Отчётный период
C12: Год | D12: 2016
C13: Квартал (с нарастающим итогом) | D13: год
C15: Признак филиала | D15: нет
H16: Форма №2 по ОКУД | I16: 0710004
H17: Дата (год,месяц,число) | I17: 31.12.2016
C18: Организация: | D18: МУНИЦИПАЛЬНОЕ ПРЕДПРИЯТИЕ "ВОДОКАНАЛ ГОРОДА РЯЗАНИ" | H18: Коды* по ОКПО | I18: 03219667
C19: Наименование филиала:
C20: ИНН: | D20: 6227004811
C21: КПП: | D21: 623401001
C22: Вид деятельности: | D22: Холодное водоснабжение; Водоотведение | H22: Коды* по ОКВЭД | I22: 41.00.2
C23: Организационно-правовая форма/форма собственности: | D23: МУНИЦИПАЛЬНОЕ ПРЕДПРИЯТИЕ "ВОДОКАНАЛ ГОРОДА РЯЗАНИ" | E23: / | F23: муниципальная собственность | H23: Коды* по ОКОПФ/ОКФС | I23: 14 | J23: 42
C24: Единица измерения: | D24: тыс.руб. | H24: Коды* по ОКЕИ | I24: 384
C27: Муниципальный район | D27: Город Рязань
C29: Муниципальное образование | D29: Город Рязань
C31: ОКТМО | D31: 61701000
C33: Адрес организации
C34: Юридический адрес: | D34: 390027, ОБЛ РЯЗАНСКАЯ, Г РЯЗАНЬ, Ш КАСИМОВСКОЕ, д.9
C35: Почтовый адрес: | D35: 390000, Рязанская Область, Рязань Город, Касимовское Шоссе, д.9
C37: Руководитель
C38: Фамилия, имя, отчество: | D38: Штефан Олег Борисович
C39: (код) номер телефона: | D39: (4912) 41 00 10 | H39: * Расшифровки всех сокращений и ссылки приведены на листе "Инструкция"
C41: Главный бухгалтер
C42: Фамилия, имя, отчество: | D42: Куранова Наталия Александровна
C43: (код) номер телефона: | D43: (4912) 41 80 48
C45: Должностное лицо, ответственное за составление формы
C46: Фамилия, имя, отчество: | D46: Оболенцева Екатерина Николаевна
C47: Должность: | D47: начальние планово-экономического отдела
C48: (код) номер телефона: | D48: (4912) 41 02 13
C49: e-mail: | D49: otn@vkrzn.ru
C51: Дата составления документа | D51: =TODAY() -> 2017-04-19

Sheet стр 1-2
N7: Форма 0710004 с. 1-2
D8: Отчет о движении денежных средств
M10: =IF(unit="","",unit) -> тыс.руб.
E11: № п/п | F11: Наименование показателя | G11: Код строки | H11: ="За "&IF(OR(god="",_prd2=""),"отчётный период",IF(_prd2="год"," "&god&" год",_prd2&" "&god&" года")) -> За 2016 год | K11: ="За "&IF(OR(god="",_prd2=""),"период предыдущего года, аналогичный отчётному периоду",IF(_prd2="год"," "&god-1&" год",_prd2&" "&god-1&" года")) -> За 2015 год
E13: 1 | F13: 2 | G13: 3 | H13: 4 | K13: 5
E14: 1 | F14: Денежные потоки от текущих операций
E15: 1.1 | F15: Поступления - всего, в том числе: | G15: 4110 | H15: =IF((SUMIF(H16:H19,"",I16:I19)-SUMIF(H16:H19,"(",I16:I19))<0,"(","") ->  | I15: =ABS(SUMIF(H16:H19,"",I16:I19)-SUMIF(H16:H19,"(",I16:I19)) -> 1285888 | J15: =IF(H15="(",")","") ->  | K15: =IF((SUMIF(K16:K19,"",L16:L19)-SUMIF(K16:K19,"(",L16:L19))<0,"(","") ->  | L15: =ABS(SUMIF(K16:K19,"",L16:L19)-SUMIF(K16:K19,"(",L16:L19)) -> 1129458 | M15: =IF(K15="(",")","") -> 
E16: 1.1.1 | F16: от продажи продукции, товаров, работ и услуг | G16: 4111 | I16: 1271302 | L16: 1112299
E17: 1.1.2 | F17: арендных платежей, лицензионных платежей, роялти, комиссионных и иных аналогичных платежей | G17: 4112
E18: 1.1.3 | F18: от перепродажи финансовых вложений | G18: 4113
E19: 1.1.4 | F19: прочие поступления | G19: 4119 | I19: 14586 | L19: 17159
E20: 1.2 | F20: Платежи - всего, в том числе: | G20: 4120 | H20: ( | I20: =SUM(I21:I25) -> 1303011 | J20: ) | K20: ( | L20: =SUM(L21:L25) -> 1103781 | M20: )
E21: 1.2.1 | F21: поставщикам (подрядчикам) за сырье, материалы, работы, услуги | G21: 4121 | H21: ( | I21: 752560 | J21: ) | K21: ( | L21: 610836 | M21: )
E22: 1.2.2 | F22: в связи с оплатой труда работников | G22: 4122 | H22: ( | I22: 465434 | J22: ) | K22: ( | L22: 424092 | M22: )
E23: 1.2.3 | F23: процентов по долговым обязательствам | G23: 4123 | H23: ( | J23: ) | K23: ( | L23: 2738 | M23: )
E24: 1.2.4 | F24: налога на прибыль организаций | G24: 4124 | H24: ( | J24: ) | K24: ( | M24: )
E25: 1.2.5 | F25: прочие платежи | G25: 4129 | H25: ( | I25: 85017 | J25: ) | K25: ( | L25: 66115 | M25: )
E26: 1.3 | F26: Сальдо денежных потоков от текущих операций | G26: 4100 | H26: =IF((IF(H15="(",-I15,I15)+IF(H20="(",-I20,I20))<0,"(","") -> ( | I26: =ABS(IF(H15="(",-I15,I15)+IF(H20="(",-I20,I20)) -> 17123 | J26: =IF(H26="(",")","") -> ) | K26: =IF((IF(K15="(",-L15,L15)+IF(K20="(",-L20,L20))<0,"(","") ->  | L26: =ABS(IF(K15="(",-L15,L15)+IF(K20="(",-L20,L20)) -> 25677 | M26: =IF(K26="(",")","") -> 
E27: 2 | F27: Денежные потоки от инвестиционных операций
E28: 2.1 | F28: Поступления - всего, в том числе: | G28: 4210 | H28: =IF((SUMIF(H29:H33,"",I29:I33)-SUMIF(H29:H33,"(",I29:I33))<0,"(","") ->  | I28: =ABS(SUMIF(H29:H33,"",I29:I33)-SUMIF(H29:H33,"(",I29:I33)) -> 100657 | J28: =IF(H28="(",")","") ->  | K28: =IF((SUMIF(K29:K33,"",L29:L33)-SUMIF(K29:K33,"(",L29:L33))<0,"(","") ->  | L28: =ABS(SUMIF(K29:K33,"",L29:L33)-SUMIF(K29:K33,"(",L29:L33)) -> 159997 | M28: =IF(K28="(",")","") -> 
E29: 2.1.1 | F29: от продажи внеоборотных активов (кроме финансовых вложений) | G29: 4211
E30: 2.1.2 | F30: от продажи акций других организаций (долей участия) | G30: 4212
E31: 2.1.3 | F31: от возврата предоставленных займов, от продажи долговых ценных бумаг (прав требования денежных средств к другим лицам) | G31: 4213
E32: 2.1.4 | F32: дивидендов, процентов по долговым финансовым вложениям и аналогичных поступлений от долевого участия в других организациях | G32: 4214
E33: 2.1.5 | F33: прочие поступления | G33: 4219 | I33: 100657 | L33: 159997
E34: 2.2 | F34: Платежи - всего, в том числе: | G34: 4220 | H34: ( | I34: =SUM(I35:I39) -> 91651 | J34: ) | K34: ( | L34: =SUM(L35:L39) -> 172036 | M34: )
E35: 2.2.1 | F35: в связи с приобретением, созданием, модернизацией, реконструкцией и подготовкой к использованию внеоборотных активов | G35: 4221 | H35: ( | I35: 65950 | J35: ) | K35: ( | L35: 140837 | M35: )
E36: 2.2.2 | F36: в связи с приобретением акций других организаций (долей участия) | G36: 4222 | H36: ( | J36: ) | K36: ( | M36: )
E37: 2.2.3 | F37: в связи с приобретением долговых ценных бумаг (прав требования денежных средств к другим лицам), предоставление займов другим лицам | G37: 4223 | H37: ( | J37: ) | K37: ( | M37: )
E38: 2.2.4 | F38: процентов по долговым обязательствам, включаемым в стоимость инвестиционного актива | G38: 4224 | H38: ( | J38: ) | K38: ( | M38: )
E39: 2.2.5 | F39: прочие платежи | G39: 4229 | H39: ( | I39: 25701 | J39: ) | K39: ( | L39: 31199 | M39: )
E40: 2.3 | F40: Сальдо денежных потоков от инвестиционных операций | G40: 4200 | H40: =IF((IF(H28="(",-I28,I28)+IF(H34="(",-I34,I34))<0,"(","") ->  | I40: =ABS(IF(H28="(",-I28,I28)+IF(H34="(",-I34,I34)) -> 9006 | J40: =IF(H40="(",")","") ->  | K40: =IF((IF(K28="(",-L28,L28)+IF(K34="(",-L34,L34))<0,"(","") -> ( | L40: =ABS(IF(K28="(",-L28,L28)+IF(K34="(",-L34,L34)) -> 12039 | M40: =IF(K40="(",")","") -> )
E41: 3 | F41: Денежные потоки от финансовых операций
E42: 3.1 | F42: Поступления - всего, в том числе: | G42: 4310 | H42: =IF((SUMIF(H43:H47,"",I43:I47)-SUMIF(H43:H47,"(",I43:I47))<0,"(","") ->  | I42: =ABS(SUMIF(H43:H47,"",I43:I47)-SUMIF(H43:H47,"(",I43:I47)) -> 0 | J42: =IF(H42="(",")","") ->  | K42: =IF((SUMIF(K43:K47,"",L43:L47)-SUMIF(K43:K47,"(",L43:L47))<0,"(","") ->  | L42: =ABS(SUMIF(K43:K47,"",L43:L47)-SUMIF(K43:K47,"(",L43:L47)) -> 0 | M42: =IF(K42="(",")","") -> 
E43: 3.1.1 | F43: получение кредитов и займов | G43: 4311
E44: 3.1.2 | F44: денежных вкладов собственников (участников) | G44: 4312
E45: 3.1.3 | F45: от выпуска акций, увеличения долей участия | G45: 4313
E46: 3.1.4 | F46: от выпуска облигаций, векселей и других долговых ценных бумаг и др. | G46: 4314
E47: 3.1.5 | F47: прочие поступления | G47: 4319
E48: 3.2 | F48: Платежи - всего, в том числе: | G48: 4320 | H48: ( | I48: =SUM(I49:I52) -> 0 | J48: ) | K48: ( | L48: =SUM(L49:L52) -> 35500 | M48: )
E49: 3.2.1 | F49: собственникам (участникам) в связи с выкупом у них акций (долей участия) организации или их выходом из состава участников | G49: 4321 | H49: ( | J49: ) | K49: ( | M49: )
E50: 3.2.2 | F50: на уплату дивидендов и иных платежей по распределению прибыли в пользу собственников (участников) | G50: 4322 | H50: ( | J50: ) | K50: ( | M50: )
E51: 3.2.3 | F51: в связи с погашением (выкупом) векселей и других долговых ценных бумаг, возврат кредитов и займов | G51: 4323 | H51: ( | I51: 0 | J51: ) | K51: ( | L51: 35500 | M51: )
E52: 3.2.4 | F52: прочие платежи | G52: 4329 | H52: ( | J52: ) | K52: ( | M52: )
E53: 3.3 | F53: Сальдо денежных потоков от финансовых операций | G53: 4300 | H53: =IF((IF(H42="(",-I42,I42)+IF(H48="(",-I48,I48))<0,"(","") ->  | I53: =ABS(IF(H42="(",-I42,I42)+IF(H48="(",-I48,I48)) -> 0 | J53: =IF(H53="(",")","") ->  | K53: =IF((IF(K42="(",-L42,L42)+IF(K48="(",-L48,L48))<0,"(","") -> ( | L53: =ABS(IF(K42="(",-L42,L42)+IF(K48="(",-L48,L48)) -> 35500 | M53: =IF(K53="(",")","") -> )
E54: 4 | F54: Сальдо денежных потоков за отчетный период | G54: 4400 | H54: =IF((IF(H26="(",-I26,I26)+IF(H40="(",-I40,I40)+IF(H53="(",-I53,I53))<0,"(","") -> ( | I54: =ABS(IF(H26="(",-I26,I26)+IF(H40="(",-I40,I40)+IF(H53="(",-I53,I53)) -> 8117 | J54: =IF(H54="(",")","") -> ) | K54: =IF((IF(K26="(",-L26,L26)+IF(K40="(",-L40,L40)+IF(K53="(",-L53,L53))<0,"(","") -> ( | L54: =ABS(IF(K26="(",-L26,L26)+IF(K40="(",-L40,L40)+IF(K53="(",-L53,L53)) -> 21862 | M54: =IF(K54="(",")","") -> )
E55: 5 | F55: Остаток денежных средств и денежных эквивалентов на начало отчетного периода | G55: 4450 | I55: 30778 | L55: 52640
E56: 6 | F56: Остаток денежных средств и денежных эквивалентов на конец отчетного периода | G56: 4500 | H56: =IF((IF(H54="(",-I54,I54)+IF(H55="(",-I55,I55)+IF(H57="(",-I57,I57))<0,"(","") ->  | I56: =ABS(IF(H54="(",-I54,I54)+IF(H55="(",-I55,I55)+IF(H57="(",-I57,I57)) -> 22661 | J56: =IF(H56="(",")","") ->  | K56: =IF((IF(K54="(",-L54,L54)+IF(K55="(",-L55,L55)+IF(K57="(",-L57,L57))<0,"(","") ->  | L56: =ABS(IF(K54="(",-L54,L54)+IF(K55="(",-L55,L55)+IF(K57="(",-L57,L57)) -> 30778 | M56: =IF(K56="(",")","") -> 
E57: 7 | F57: Величина влияния изменений курса иностранной валюты по отношению к рублю | G57: 4490

Sheet Расшифровка показателей
A2: Амурская область
N7: Форма 0710004 с. 3
D8: Расшифровка отдельных показателей
M10: =IF(unit="","",unit) -> тыс.руб.
E11: № п/п | F11: Пассив | G11: Код строки | H11: ="За "&IF(OR(god="",_prd2=""),"отчётный период",IF(_prd2="год"," "&god&" год",_prd2&" "&god&" года")) -> За 2016 год | K11: ="За "&IF(OR(god="",_prd2=""),"аналогичный период предыдущего года",IF(_prd2="год"," "&god-1&" год",_prd2&" "&god-1&" года")) -> За 2015 год
E12: 1 | F12: 2 | G12: 3 | H12: 4 | K12: 5
E13: 1 | F13: Прочие поступления от текущих операций (стр. 4119), в том числе: | H13: =IF('стр 1-2'!H19="(","(","") ->  | I13: ='стр 1-2'!I19 -> 14586 | J13: =IF(flagParenthesis_Indicators_1="(",")","") ->  | K13: =IF('стр 1-2'!K19="(","(","") ->  | L13: ='стр 1-2'!L19 -> 17159 | M13: =IF(flagParenthesis_Indicators_2="(",")","") -> 
E14: 1.1 | G14: 41191
E15: 1.2 | G15: 41192
E16: 1.3 | G16: 41193
E17: 1.4 | G17: 41194
E18: 1.5 | G18: 41195
F19: Добавить строку
E20: 2 | F20: На прочие платежи от текущих операций (стр. 4129), в том числе: | H20: =IF('стр 1-2'!H25="(","(","") -> ( | I20: ='стр 1-2'!I25 -> 85017 | J20: =IF(H20="(",")","") -> ) | K20: =IF('стр 1-2'!K25="(","(","") -> ( | L20: ='стр 1-2'!L25 -> 66115 | M20: =IF(K20="(",")","") -> )
E21: 2.1 | G21: 41291 | H21: ( | J21: ) | K21: ( | M21: )
E22: 2.2 | G22: 41292 | H22: ( | J22: ) | K22: ( | M22: )
E23: 2.3 | G23: 41293 | H23: ( | J23: ) | K23: ( | M23: )
E24: 2.4 | G24: 41294 | H24: ( | J24: ) | K24: ( | M24: )
E25: 2.5 | G25: 41295 | H25: ( | J25: ) | K25: ( | M25: )
F26: Добавить строку
E27: 3 | F27: Прочие поступления от инвестиционных операций (стр. 4219), в том числе: | H27: =IF('стр 1-2'!H33="(","(","") ->  | I27: ='стр 1-2'!I33 -> 100657 | J27: =IF(H27="(",")","") ->  | K27: =IF('стр 1-2'!K33="(","(","") ->  | L27: ='стр 1-2'!L33 -> 159997 | M27: =IF(K27="(",")","") -> 
E28: 3.1 | G28: 42191
E29: 3.2 | G29: 42192
E30: 3.3 | G30: 42193
E31: 3.4 | G31: 42194
E32: 3.5 | G32: 42195
F33: Добавить строку
E34: 4 | F34: На прочие платежи от инвестиционных операций (стр. 4229), в том числе: | H34: =IF('стр 1-2'!H39="(","(","") -> ( | I34: ='стр 1-2'!I39 -> 25701 | J34: =IF(H34="(",")","") -> ) | K34: =IF('стр 1-2'!K39="(","(","") -> ( | L34: ='стр 1-2'!L39 -> 31199 | M34: =IF(K34="(",")","") -> )
E35: 4.1 | G35: 42291 | H35: ( | J35: ) | K35: ( | M35: )
E36: 4.2 | G36: 42292 | H36: ( | J36: ) | K36: ( | M36: )
E37: 4.3 | G37: 42293 | H37: ( | J37: ) | K37: ( | M37: )
E38: 4.4 | G38: 42294 | H38: ( | J38: ) | K38: ( | M38: )
E39: 4.5 | G39: 42295 | H39: ( | J39: ) | K39: ( | M39: )
F40: Добавить строку
E41: 5 | F41: Другие поступления от финансовых операций (стр. 4319), в том числе: | H41: =IF('стр 1-2'!H47="(","(","") ->  | I41: ='стр 1-2'!I47 -> 0 | J41: =IF(H41="(",")","") ->  | K41: =IF('стр 1-2'!K47="(","(","") ->  | L41: ='стр 1-2'!L47 -> 0 | M41: =IF(K41="(",")","") -> 
E42: 5.1 | G42: 43191
E43: 5.2 | G43: 43192
E44: 5.3 | G44: 43193
E45: 5.4 | G45: 43194
E46: 5.5 | G46: 43195
F47: Добавить строку
E48: 6 | F48: На прочие платежи от финансовых операций (стр. 4329), в том числе: | H48: =IF('стр 1-2'!H52="(","(","") -> ( | I48: ='стр 1-2'!I52 -> 0 | J48: =IF(H48="(",")","") -> ) | K48: =IF('стр 1-2'!K52="(","(","") -> ( | L48: ='стр 1-2'!L52 -> 0 | M48: =IF(K48="(",")","") -> )
E49: 6.1 | G49: 43291 | H49: ( | J49: ) | K49: ( | M49: )
E50: 6.2 | G50: 43292 | H50: ( | J50: ) | K50: ( | M50: )
E51: 6.3 | G51: 43293 | H51: ( | J51: ) | K51: ( | M51: )
E52: 6.4 | G52: 43294 | H52: ( | J52: ) | K52: ( | M52: )
E53: 6.5 | G53: 43295 | H53: ( | J53: ) | K53: ( | M53: )
F54: Добавить строку

Sheet Комментарии
A2: Амурская область
D8: КОММЕНТАРИИ

Sheet Проверка
E10: Результат проверки
E12: Ссылка | F12: Причина | G12: Статус ошибки
E13: 1 | F13: 2 | G13: 3

Sheet AllSheetsInThisWorkbook (hidden)
A1: Расчетные листы | B1: Скрытые листы
A2: Инструкция | B2: AllSheetsInThisWorkbook
A3: Титульный | B3: et_union
A4: стр 1-2 | B4: TEHSHEET
A5: Расшифровка показателей | B5: REESTR_ORG
A6: Комментарии | B6: REESTR_FILTERED
A7: Проверка | B7: REESTR_MO
B8: modHyperlink
B9: modChange
B10: modPROV
B11: modTitleSheetHeaders
B12: modServiceModule
B13: modCommandButton
B14: modReestr
B15: modClassifierValidate
B16: modInfo
B17: modfrmReestr
B18: modfrmDateChoose
B19: modDblClick
B20: Паспорт
B21: modUpdTemplMain
B22: modRegionSelectSub
B23: modThisWorkbook
B24: modReestrMO
B25: modSheetMain01
B26: modSheetMain02
B27: modSheetMain03
B28: modSheetMain04
B29: modSheetMain05

Sheet et_union (hidden)
A2: add_INCOME_CONSUMPTION_range
A7: add_GAINS_AND_LOSSES_range
A12: add_INDICATORS_range
A16: add_INDICATORS_range_2
H18: ( | J18: ) | K18: ( | M18: )

Sheet TEHSHEET (hidden)
A1: регион | B1: Логика | C1: Кварталы | D1: Года | E1: Единица измерения | F1: Месяц-текст | G1: Месяц-число | H1: День-число | J1: XML_ORG_LIST_TAG_NAMES
B2: да | C2: I квартал | D2: 2011 | E2: тыс.руб. | F2: январь | G2: 01 | H2: 01 | J2: NSRF
A3: Алтайский край | B3: нет | C3: I полугодие | D3: 2012 | E3: млн.руб. | F3: февраль | G3: 02 | H3: 02 | J3: MR_NAME
A4: Амурская область | C4: 9 месяцев | D4: 2013 | F4: март | G4: 03 | H4: 03 | J4: OKTMO_MR_NAME
A5: Архангельская область | C5: год | D5: 2014 | E5: Единица измерения для листа "Доходы-Расходы" | F5: апрель | G5: 04 | H5: 04 | J5: MO_NAME
A6: Астраханская область | B6: Выбранный регион | D6: 2015 | E6: руб. | F6: май | G6: 05 | H6: 05 | J6: OKTMO_NAME
A7: Белгородская область | B7: 0 | E7: тыс.руб. | F7: июнь | G7: 06 | H7: 06 | J7: ORG_NAME
A8: Брянская область | E8: млн.руб. | F8: июль | G8: 07 | H8: 07 | J8: INN_NAME
A9: Владимирская область | F9: август | G9: 08 | H9: 08 | J9: KPP_NAME
A10: Волгоградская область | F10: сентябрь | G10: 09 | H10: 09
A11: Вологодская область | F11: октябрь | G11: 10 | H11: 10 | J11: XML_MR_MO_OKTMO_LIST_TAG_NAMES
A12: Воронежская область | F12: ноябрь | G12: 11 | H12: 11 | J12: NSRF
A13: г.Байконур | F13: декабрь | G13: 12 | H13: 12 | J13: MR_NAME
A14: г. Москва | H14: 13 | J14: OKTMO_MR_NAME
A15: г.Санкт-Петербург | H15: 14 | J15: MO_NAME
A16: Еврейская автономная область | H16: 15 | J16: OKTMO_NAME
A17: Забайкальский край | H17: 16
A18: Ивановская область | H18: 17
A19: Иркутская область | H19: 18
A20: Кабардино-Балкарская республика | H20: 19
A21: Калининградская область | H21: 20
A22: Калужская область | H22: 21
A23: Камчатский край | H23: 22
A24: Карачаево-Черкесская республика | H24: 23
A25: Кемеровская область | H25: 24
A26: Кировская область | H26: 25
A27: Костромская область | H27: 26
A28: Краснодарский край | H28: 27
A29: Красноярский край | H29: 28
A30: Курганская область | H30: 29
A31: Курская область | H31: 30
A32: Ленинградская область | H32: 31
A33: Липецкая область
A34: Магаданская область
A35: Московская область
A36: Мурманская область
A37: Ненецкий автономный округ
A38: Нижегородская область
A39: Новгородская область
A40: Новосибирская область
A41: Омская область
A42: Оренбургская область
A43: Орловская область
A44: Пензенская область
A45: Пермский край
A46: Приморский край
A47: Псковская область
A48: Республика Адыгея
A49: Республика Алтай
A50: Республика Башкортостан
A51: Республика Бурятия
A52: Республика Дагестан
A53: Республика Ингушетия
A54: Республика Калмыкия
A55: Республика Карелия
A56: Республика Коми
A57: Республика Марий Эл
A58: Республика Мордовия
A59: Республика Саха (Якутия)
A60: Республика Северная Осетия-Алания
A61: Республика Татарстан
A62: Республика Тыва
A63: Республика Хакасия
A64: Ростовская область
A65: Рязанская область
A66: Самарская область
A67: Саратовская область
A68: Сахалинская область
A69: Свердловская область
A70: Смоленская область
A71: Ставропольский край
A72: Тамбовская область
A73: Тверская область
A74: Томская область
A75: Тульская область
A76: Тюменская область
A77: Удмуртская республика
A78: Ульяновская область
A79: Хабаровский край
A80: Ханты-Мансийский автономный округ
A81: Челябинская область
A82: Чеченская республика
A83: Чувашская республика
A84: Чукотский автономный округ
A85: Ямало-Ненецкий автономный округ
A86: Ярославская область

Sheet REESTR_ORG (hidden)
A1: № | B1: МР | C1: МО | D1: МО ОКТМО | E1: ОРГАНИЗАЦИЯ | F1: ИНН | G1: КПП | H1: ВИД ДЕЯТЕЛЬНОСТИ

Sheet REESTR_FILTERED (hidden)
A1: № | B1: МР | C1: МО | D1: МО ОКТМО | E1: ОРГАНИЗАЦИЯ | F1: ИНН | G1: КПП | H1: ВИД ДЕЯТЕЛЬНОСТИ

Sheet REESTR_MO (hidden)
A1: МР | B1: МО | C1: МО_ОКТМО | D1: МР | E1: ИМЯ ДИАПАЗОНА
A2: Александро-Невский муниципальный район | B2: Александро-Невский муниципальный район | C2: 61620000 | D2: Александро-Невский муниципальный район | E2: MO_LIST_2
A3: Александро-Невский муниципальный район | B3: Александро-Невское | C3: 61620151 | D3: Город Касимов | E3: MO_LIST_3
A4: Александро-Невский муниципальный район | B4: Благовское | C4: 61620405 | D4: Город Рязань | E4: MO_LIST_4
A5: Александро-Невский муниципальный район | B5: Борисовское | C5: 61620410 | D5: Город Сасово | E5: MO_LIST_5
A6: Александро-Невский муниципальный район | B6: Бурминское | C6: 61620420 | D6: Город Скопин | E6: MO_LIST_6
A7: Александро-Невский муниципальный район | B7: Каширинское | C7: 61620450 | D7: Ермишинский муниципальный район | E7: MO_LIST_7
A8: Александро-Невский муниципальный район | B8: Ленинское | C8: 61620435 | D8: Захаровский муниципальный район | E8: MO_LIST_8
A9: Александро-Невский муниципальный район | B9: Нижнеякимецкое | C9: 61620445 | D9: Кадомский муниципальный район | E9: MO_LIST_9
A10: Александро-Невский муниципальный район | B10: Просеченское | C10: 61620460 | D10: Касимовский муниципальный район | E10: MO_LIST_10
A11: Город Касимов | B11: Город Касимов | C11: 61705000 | D11: Клепиковский муниципальный район | E11: MO_LIST_11
A12: Город Рязань | B12: Город Рязань | C12: 61701000 | D12: Кораблинский муниципальный район | E12: MO_LIST_12
A13: Город Сасово | B13: Город Сасово | C13: 61710000 | D13: Милославский муниципальный район | E13: MO_LIST_13
A14: Город Скопин | B14: Город Скопин | C14: 61715000 | D14: Михайловский муниципальный район | E14: MO_LIST_14
A15: Ермишинский муниципальный район | B15: Азеевское | C15: 61602405 | D15: Пителинский муниципальный район | E15: MO_LIST_15
A16: Ермишинский муниципальный район | B16: Ермишинский муниципальный район | C16: 61602000 | D16: Пронский муниципальный район | E16: MO_LIST_16
A17: Ермишинский муниципальный район | B17: Ермишинское | C17: 61602151 | D17: Путятинский муниципальный район | E17: MO_LIST_17
A18: Ермишинский муниципальный район | B18: Мердушинское | C18: 61602425 | D18: Рыбновский муниципальный район | E18: MO_LIST_18
A19: Ермишинский муниципальный район | B19: Надежкинское | C19: 61602430 | D19: Ряжский муниципальный район | E19: MO_LIST_19
A20: Ермишинский муниципальный район | B20: Нарминское | C20: 61602435 | D20: Рязанский муниципальный район | E20: MO_LIST_20
A21: Ермишинский муниципальный район | B21: Савватемское | C21: 61602440 | D21: Сапожковский муниципальный район | E21: MO_LIST_21
A22: Захаровский муниципальный район | B22: Безлыченское | C22: 61604412 | D22: Сараевский муниципальный район | E22: MO_LIST_22
A23: Захаровский муниципальный район | B23: Большекоровинское | C23: 61604415 | D23: Сасовский муниципальный район | E23: MO_LIST_23
A24: Захаровский муниципальный район | B24: Добро-Пчельское | C24: 61604430 | D24: Скопинский муниципальный район | E24: MO_LIST_24
A25: Захаровский муниципальный район | B25: Елинское | C25: 61604432 | D25: Спасский муниципальный район | E25: MO_LIST_25
A26: Захаровский муниципальный район | B26: Захаровский муниципальный район | C26: 61604000 | D26: Старожиловский муниципальный район | E26: MO_LIST_26
A27: Захаровский муниципальный район | B27: Захаровское | C27: 61604440 | D27: Ухоловский муниципальный район | E27: MO_LIST_27
A28: Захаровский муниципальный район | B28: Плахинское | C28: 61604465 | D28: Чучковский муниципальный район | E28: MO_LIST_28
A29: Захаровский муниципальный район | B29: Сменовское | C29: 61604425 | D29: Шацкий муниципальный район | E29: MO_LIST_29
A30: Кадомский муниципальный район | B30: Восходское | C30: 61606405 | D30: Шиловский муниципальный район | E30: MO_LIST_30
A31: Кадомский муниципальный район | B31: Енкаевское | C31: 61606410
A32: Кадомский муниципальный район | B32: Кадомский муниципальный район | C32: 61606000
A33: Кадомский муниципальный район | B33: Кадомское | C33: 61606151
A34: Кадомский муниципальный район | B34: Котелинское | C34: 61606420
A35: Кадомский муниципальный район | B35: Кущапинское | C35: 61606430
A36: Касимовский муниципальный район | B36: Ардабьевское | C36: 61608403
A37: Касимовский муниципальный район | B37: Ахматовское | C37: 61608406
A38: Касимовский муниципальный район | B38: Балушево-Починковское | C38: 61608409
A39: Касимовский муниципальный район | B39: Булгаковское | C39: 61608439
A40: Касимовский муниципальный район | B40: Гиблицкое | C40: 61608418
A41: Касимовский муниципальный район | B41: Гусевское | C41: 61608154
A42: Касимовский муниципальный район | B42: Дмитриевское | C42: 61608421
A43: Касимовский муниципальный район | B43: Елатомское | C43: 61608156
A44: Касимовский муниципальный район | B44: Ермоловское | C44: 61608424
A45: Касимовский муниципальный район | B45: Ибердусское | C45: 61608430
A46: Касимовский муниципальный район | B46: Касимовский муниципальный район | C46: 61608000
A47: Касимовский муниципальный район | B47: Китовское | C47: 61608433
A48: Касимовский муниципальный район | B48: Клетинское | C48: 61608434
A49: Касимовский муниципальный район | B49: Которовское | C49: 61608442
A50: Касимовский муниципальный район | B50: Крутоярское | C50: 61608453
A51: Касимовский муниципальный район | B51: Лашманское | C51: 61608454
A52: Касимовский муниципальный район | B52: Лощининское | C52: 61608471
A53: Касимовский муниципальный район | B53: Новодеревенское | C53: 61608456
A54: Касимовский муниципальный район | B54: Овчинниковское | C54: 61608459
A55: Касимовский муниципальный район | B55: Первинское | C55: 61608462
A56: Касимовский муниципальный район | B56: Погостинское | C56: 61608465
A57: Касимовский муниципальный район | B57: Савостьяновское | C57: 61608468
A58: Касимовский муниципальный район | B58: Сынтульское | C58: 61608160
A59: Касимовский муниципальный район | B59: Токаревское | C59: 61608474
A60: Касимовский муниципальный район | B60: Торбаевское | C60: 61608412
A61: Касимовский муниципальный район | B61: Шостьинское | C61: 61608480
A62: Клепиковский муниципальный район | B62: Алексеевское | C62: 61610403
A63: Клепиковский муниципальный район | B63: Болоньское | C63: 61610415
A64: Клепиковский муниципальный район | B64: Бусаевское | C64: 61610418
A65: Клепиковский муниципальный район | B65: Екшурское | C65: 61610451
A66: Клепиковский муниципальный район | B66: Клепиковский муниципальный район | C66: 61610000
A67: Клепиковский муниципальный район | B67: Колесниковское | C67: 61610448
A68: Клепиковский муниципальный район | B68: Криушинское | C68: 61610454
A69: Клепиковский муниципальный район | B69: Макеевское | C69: 61610460
A70: Клепиковский муниципальный район | B70: Малаховское | C70: 61610463
A71: Клепиковский муниципальный район | B71: Молькинское | C71: 61610475
A72: Клепиковский муниципальный район | B72: Ненашкинское | C72: 61610487
A73: Клепиковский муниципальный район | B73: Оськинское | C73: 61610472
A74: Клепиковский муниципальный район | B74: Спас-Клепиковское | C74: 61610101
A75: Клепиковский муниципальный район | B75: Тумское | C75: 61610154
A76: Клепиковский муниципальный район | B76: Тюковское | C76: 61610484
A77: Клепиковский муниципальный район | B77: Уткинское | C77: 61610421
A78: Кораблинский муниципальный район | B78: Бобровинское | C78: 61612408
A79: Кораблинский муниципальный район | B79: Кипчаковское | C79: 61612424
A80: Кораблинский муниципальный район | B80: Ключанское | C80: 61612428
A81: Кораблинский муниципальный район | B81: Ковалинское | C81: 61612432
A82: Кораблинский муниципальный район | B82: Кораблинский муниципальный район | C82: 61612000
A83: Кораблинский муниципальный район | B83: Кораблинское | C83: 61612101
A84: Кораблинский муниципальный район | B84: Молвинослободское | C84: 61612456
A85: Кораблинский муниципальный район | B85: Незнановское | C85: 61612448
A86: Кораблинский муниципальный район | B86: Пехлецкое | C86: 61612460
A87: Кораблинский муниципальный район | B87: Пустотинское | C87: 61612464
A88: Кораблинский муниципальный район | B88: Яблоневское | C88: 61612484
A89: Милославский муниципальный район | B89: Богородицкое | C89: 61615408
A90: Милославский муниципальный район | B90: Большеподовечинское | C90: 61615412
A91: Милославский муниципальный район | B91: Горняцкое | C91: 61615422
A92: Милославский муниципальный район | B92: Кочуровское | C92: 61615428
A93: Милославский муниципальный район | B93: Липяговское | C93: 61615432
A94: Милославский муниципальный район | B94: Милославский муниципальный район | C94: 61615000
A95: Милославский муниципальный район | B95: Павловское | C95: 61615456
A96: Милославский муниципальный район | B96: Центральное | C96: 61615160
A97: Милославский муниципальный район | B97: Чернавское | C97: 61615472
A98: Милославский муниципальный район | B98: городское поселение Милославское | C98: 61615151
A99: Милославский муниципальный район | B99: сельское поселение Милославское | C99: 61615444
A100: Михайловский муниципальный район | B100: Виленское | C100: 61617406
A101: Михайловский муниципальный район | B101: Голдинское | C101: 61617412
A102: Михайловский муниципальный район | B102: Горностаевское | C102: 61617415
A103: Михайловский муниципальный район | B103: Грязновское | C103: 61617418
A104: Михайловский муниципальный район | B104: Жмуровское | C104: 61617421
A105: Михайловский муниципальный район | B105: Ильичевское | C105: 61617476
A106: Михайловский муниципальный район | B106: Каморинское | C106: 61617433
A107: Михайловский муниципальный район | B107: Красновское | C107: 61617439
A108: Михайловский муниципальный район | B108: Михайловский муниципальный район | C108: 61617000
A109: Михайловский муниципальный район | B109: Михайловское | C109: 61617101
A110: Михайловский муниципальный район | B110: Новопанское | C110: 61617448
A111: Михайловский муниципальный район | B111: Октябрьское | C111: 61617154
A112: Михайловский муниципальный район | B112: Печерниковское | C112: 61617451
A113: Михайловский муниципальный район | B113: Поярковское | C113: 61617457
A114: Михайловский муниципальный район | B114: Рачатниковское | C114: 61617460
A115: Михайловский муниципальный район | B115: Слободское | C115: 61617467
A116: Михайловский муниципальный район | B116: Стрелецко-Высельское | C116: 61617470
A117: Михайловский муниципальный район | B117: Трепольское | C117: 61617473
A118: Михайловский муниципальный район | B118: Чуриковское | C118: 61617485
A119: Михайловский муниципальный район | B119: Щетининское | C119: 61617491
A120: Пителинский муниципальный район | B120: Ермо-Николаевское | C120: 61623420
A121: Пителинский муниципальный район | B121: Нестеровское | C121: 61623425
A122: Пителинский муниципальный район | B122: Пеньковское | C122: 61623435
A123: Пителинский муниципальный район | B123: Пителинский муниципальный район | C123: 61623000
A124: Пителинский муниципальный район | B124: Пителинское | C124: 61623151
A125: Пителинский муниципальный район | B125: Потапьевское | C125: 61623450
A126: Пронский муниципальный район | B126: Малинищинское | C126: 61625435
A127: Пронский муниципальный район | B127: Мамоновское | C127: 61625440
A128: Пронский муниципальный район | B128: Новомичуринское | C128: 61625114
A129: Пронский муниципальный район | B129: Октябрьское | C129: 61625445
A130: Пронский муниципальный район | B130: Орловское | C130: 61625450
A131: Пронский муниципальный район | B131: Погореловское | C131: 61625455
A132: Пронский муниципальный район | B132: Пронский муниципальный район | C132: 61625000
A133: Пронский муниципальный район | B133: Пронское | C133: 61625151
A134: Пронский муниципальный район | B134: Тырновское | C134: 61625405
A135: Путятинский муниципальный район | B135: Береговское | C135: 61626406
A136: Путятинский муниципальный район | B136: Большеекатериновское | C136: 61626403
A137: Путятинский муниципальный район | B137: Карабухинское | C137: 61626424
A138: Путятинский муниципальный район | B138: Песочинское | C138: 61626432
A139: Путятинский муниципальный район | B139: Путятинский муниципальный район | C139: 61626000
A140: Путятинский муниципальный район | B140: Путятинское | C140: 61626436
A141: Путятинский муниципальный район | B141: Строевское | C141: 61626412
A142: Рыбновский муниципальный район | B142: Алешинское | C142: 61627404
A143: Рыбновский муниципальный район | B143: Баграмовское | C143: 61627406
A144: Рыбновский муниципальный район | B144: Батуринское | C144: 61627408
A145: Рыбновский муниципальный район | B145: Вакинское | C145: 61627416
A146: Рыбновский муниципальный район | B146: Глебковское | C146: 61627418
A147: Рыбновский муниципальный район | B147: Истобниковское | C147: 61627424
A148: Рыбновский муниципальный район | B148: Кузьминское | C148: 61627436
A149: Рыбновский муниципальный район | B149: Пионерское | C149: 61627476
A150: Рыбновский муниципальный район | B150: Пощуповское | C150: 61627456
A151: Рыбновский муниципальный район | B151: Рыбновский муниципальный район | C151: 61627000
A152: Рыбновский муниципальный район | B152: Рыбновское | C152: 61627101
A153: Рыбновский муниципальный район | B153: Селецкое | C153: 61627460
A154: Рыбновский муниципальный район | B154: Ходынинское | C154: 61627472
A155: Рыбновский муниципальный район | B155: Чурилковское | C155: 61627464
A156: Ряжский муниципальный район | B156: Алешинское | C156: 61630405
A157: Ряжский муниципальный район | B157: Дегтянское | C157: 61630415
A158: Ряжский муниципальный район | B158: Журавинское | C158: 61630420
A159: Ряжский муниципальный район | B159: Петровское | C159: 61630450
A160: Ряжский муниципальный район | B160: Поплевинское | C160: 61630460
A161: Ряжский муниципальный район | B161: Ряжский муниципальный район | C161: 61630000
A162: Ряжский муниципальный район | B162: Ряжское | C162: 61630101
A163: Рязанский муниципальный район | B163: Варсковское | C163: 61634402
A164: Рязанский муниципальный район | B164: Высоковское | C164: 61634409
A165: Рязанский муниципальный район | B165: Вышгородское | C165: 61634412
A166: Рязанский муниципальный район | B166: Вышетравинское | C166: 61634415
A167: Рязанский муниципальный район | B167: Дубровическое | C167: 61634427
A168: Рязанский муниципальный район | B168: Дядьковское | C168: 61634430
A169: Рязанский муниципальный район | B169: Екимовское | C169: 61634433
A170: Рязанский муниципальный район | B170: Заборьевское | C170: 61634436
A171: Рязанский муниципальный район | B171: Заокское | C171: 61634439
A172: Рязанский муниципальный район | B172: Искровское | C172: 61634485
A173: Рязанский муниципальный район | B173: Кораблинское | C173: 61634451
A174: Рязанский муниципальный район | B174: Листвянское | C174: 61634457
A175: Рязанский муниципальный район | B175: Льговское | C175: 61634460
A176: Рязанский муниципальный район | B176: Мурминское | C176: 61634401
A177: Рязанский муниципальный район | B177: Окское | C177: 61634475
A178: Рязанский муниципальный район | B178: Подвязьевское | C178: 61634478
A179: Рязанский муниципальный район | B179: Полянское | C179: 61634483
A180: Рязанский муниципальный район | B180: Ровновское | C180: 61634490
A181: Рязанский муниципальный район | B181: Рязанский муниципальный район | C181: 61634000
A182: Рязанский муниципальный район | B182: Семеновское | C182: 61634495
A183: Рязанский муниципальный район | B183: Турлатовское | C183: 61634496
A184: Рязанский муниципальный район | B184: Тюшевское | C184: 61634498
A185: Сапожковский муниципальный район | B185: Березниковское | C185: 61637435
A186: Сапожковский муниципальный район | B186: Канинское | C186: 61637410
A187: Сапожковский муниципальный район | B187: Михеевское | C187: 61637405
A188: Сапожковский муниципальный район | B188: Морозово-Борковское | C188: 61637430
A189: Сапожковский муниципальный район | B189: Сапожковский муниципальный район | C189: 61637000
A190: Сапожковский муниципальный район | B190: Сапожковское | C190: 61637151
A191: Сараевский муниципальный район | B191: Алексеевское | C191: 61640403
A192: Сараевский муниципальный район | B192: Борецкое | C192: 61640412
A193: Сараевский муниципальный район | B193: Бычковское | C193: 61640415
A194: Сараевский муниципальный район | B194: Высоковское | C194: 61640424
A195: Сараевский муниципальный район | B195: Желобовское | C195: 61640430
A196: Сараевский муниципальный район | B196: Кривское | C196: 61640436
A197: Сараевский муниципальный район | B197: Можарское | C197: 61640442
A198: Сараевский муниципальный район | B198: Муравлянское | C198: 61640448
A199: Сараевский муниципальный район | B199: Напольновское | C199: 61640451
A200: Сараевский муниципальный район | B200: Новобокинское | C200: 61640454
... 108 more rows

Sheet modHyperlink (hidden)

Sheet modChange (hidden)

Sheet modPROV (hidden)

Sheet modTitleSheetHeaders (hidden)

Sheet modServiceModule (hidden)

Sheet modCommandButton (hidden)

Sheet modReestr (hidden)

Sheet modClassifierValidate (hidden)

Sheet modInfo (hidden)

Sheet modfrmReestr (hidden)

Sheet modfrmDateChoose (hidden)

Sheet modDblClick (hidden)

Sheet Паспорт (hidden)
AV1: Код диапазона: | AW1: Название диапазона: | AX1: Сфера регулирования: | AY1: Подсфера: | AZ1: Тип информации в шаблоне: | BA1: Состояние шаблона: | BB1: Периодичность: | BC1: "Геотип" шаблона: | BD1: Тип шаблона: | BE1: Заказчик:
AV2: ps_sr | AW2: Сфера регулирования: | AX2: Не определено | AY2: Не определено | AZ2: Не определено | BA2: Не определено | BB2: Не определено | BC2: Не определено | BD2: Не определено | BE2: Не определено
AV3: ps_ti | AW3: Тип информации в шаблоне: | AX3: NETS | AY3: водоотведение - очистка | AZ3: Статистический | BA3: Проект | BB3: Единовременный | BC3: Региональный шаблон | BD3: Атомарный | BE3: РЭК
D4: Паспорт к шаблону | AV4: ps_ssh | AW4: Состояние шаблона: | AX4: Аэропорты | AY4: водоотведение - передача | AZ4: Расчетный | BA4: Утвержден | BB4: Ежемесячный | BC4: Муниципальный шаблон | BD4: Сводный | BE4: ФСТ
AV5: ps_p | AW5: Периодичность: | AX5: Газ | AY5: водоотведение - прием | AZ5: Обосновывающие материалы | BB5: Ежеквартальный | BC5: Шаблон от организации | BE5: Экспертная организация
D6: 1. Общие сведения | AV6: ps_geo | AW6: "Геотип" шаблона: | AX6: Железные дороги | AY6: водоснабжение - очистка | BB6: Ежегодный
D7: 1.1 | E7: Код | F7: EE.BALANCE.SBO.3.23 | AV7: ps_tsh | AW7: Тип шаблона: | AX7: ЖКХ | AY7: водоснабжение - передача
D8: 1.2 | E8: Краткое наименование | F8: Отчет о фактическом исполнении прогнозных балансов производства и поставок электрической (тепловой) энергии и мощности по электростанции | AV8: ps_psr | AW8: Подсфера: | AX8: Медицина | AY8: водоснабжение - подъем
D9: 1.3 | E9: Полное наименование | F9: Отчет о фактическом исполнении прогнозных балансов производства и поставок электрической (тепловой) энергии и мощности по электростанции | AV9: ps_z | AW9: Заказчик: | AX9: Порты | AY9: выработка ТС
D10: 1.4 | E10: Сфера регулирования | F10: Электроэнергетика | AX10: Связь | AY10: выработка ТС в режиме комбинированной выработки
D11: 1.5 | E11: Подсфера | F11: Не определено | AX11: Транспорт | AY11: выработка электрической энергии
D12: 1.6 | E12: Состояние шаблона (Утвержден/Проект) | F12: Проект | AX12: Электроэнергетика | AY12: выработка+передача+сбыт ТС
D13: 1.7 | E13: Заказчик | F13: РЭК | AY13: передача ТС
D14: 1.8 | E14: Отчитывается | F14: Региональный шаблон | AY14: передача ЭЭ
D15: 1.9 | E15: Тип шаблона | F15: Атомарный | G15: Если шаблон сводный, необходимо указать код атомарного шаблона для него: | AY15: сбыт ТС
D16: 1.10 | E16: Текущая версия | F16: 1.0 | AY16: сбыт ЭЭ
AY17: ТБО
D18: 2. Организационные
D19: 2.1 | E19: Тип информации в шаблоне | F19: Расчетный
D20: 2.2 | E20: Ответственный регулятор (от заказчика)
D21: 2.3 | E21: Ответственный специалист (от СМА)
D22: 2.4 | E22: Ответственный программист (от СМА) | F22: Кропачева А.В.
D23: 2.5 | E23: Ответственные за сбор данных (от СМА)
D24: 2.6 | E24: Ответственные за сбор данных (от заказчика)
D26: 3. Законодательство (методики, приказы, постановления ...)
C27: first | D27: 3.1 | E27: Документ1
C28: end | D28: Добавить документ
D30: 4. Периодичность
D31: 4.1 | E31: Периодичность | F31: Не определено
E32: Мониторинги(прошедшие и плановые) | F32: Дата начала | G32: Дата окончания | H32: Согласно (приказ, постановление, письмо)
C33: first | D33: 4.2.1 | E33: Мониторинг1
C34: end | D34: Добавить мониторинг
D36: 5. Состав шаблона
E37: Лист | F37: Последняя дата изменений эскиза | G37: Состояние листа | H37: Наименование витрины для листа | I37: Комментарии
C38: first | D38: 5.1.1 | E38: Инструкция | F38: 24.03.2009 | G38: В разработке
C39: Удалить | D39: 5.1.2 | E39: Справочники | F39: 24.03.2009 | G39: В разработке
C40: Удалить | D40: 5.1.3 | E40: Титульный | F40: 24.03.2009 | G40: В разработке
C41: Удалить | D41: 5.1.4 | E41: янв | F41: 24.03.2009 | G41: В разработке
C42: Удалить | D42: 5.1.5 | E42: фев | F42: 25.03.2009 | G42: В разработке
C43: Удалить | D43: 5.1.6 | E43: март | F43: 25.03.2010 | G43: В разработке
C44: Удалить | D44: 5.1.7 | E44: апр | F44: 25.03.2011 | G44: В разработке
C45: Удалить | D45: 5.1.8 | E45: май | F45: 25.03.2012 | G45: В разработке
C46: Удалить | D46: 5.1.9 | E46: июнь | F46: 25.03.2013 | G46: В разработке
C47: Удалить | D47: 5.1.10 | E47: июль | F47: 25.03.2014 | G47: В разработке
C48: Удалить | D48: 5.1.11 | E48: авг | F48: 25.03.2015 | G48: В разработке
C49: Удалить | D49: 5.1.12 | E49: сент | F49: 25.03.2016 | G49: В разработке
C50: Удалить | D50: 5.1.13 | E50: окт | F50: 25.03.2017 | G50: В разработке
C51: Удалить | D51: 5.1.14 | E51: нояб | F51: 25.03.2018 | G51: В разработке
C52: Удалить | D52: 5.1.15 | E52: дек | F52: 25.03.2019 | G52: В разработке
C53: Удалить | D53: 5.1.16 | E53: свод | F53: 25.03.2020 | G53: В разработке
C54: Удалить | D54: 5.1.17 | E54: Проверка | F54: 24.03.2009 | G54: В разработке
C55: end | D55: Добавить лист
D57: 6. Сроки и даты
D58: 6.1.1 | E58: Даты получения последних эскизов, от экспертов | F58: 24.03.2009
D59: 6.1.2 | E59: Даты отправки шаблона на проверку | F59: 25.03.2009
D60: 6.1.3 | E60: Предполагаемый срок сдачи шаблона в эксплуатацию
D62: 7. Версии
E63: Версия | F63: Отличия от предыдущей
C64: first | D64: 7.1
C65: end | D65: Добавить версию
D67: 8. Дополнительно
D68: 8.1 | E68: Аналогичные("похожие") шаблоны
D69: 8.2 | E69: Особенности шаблона
D70: 8.3 | E70: Модуль на основе данного шаблона
D71: 8.4 | E71: Процедуры загрузки данных в витрины

Sheet modUpdTemplMain (hidden)

Sheet modRegionSelectSub (hidden)

Sheet modThisWorkbook (hidden)

Sheet modReestrMO (hidden)

Sheet modSheetMain01 (hidden)

Sheet modSheetMain02 (hidden)

Sheet modSheetMain03 (hidden)

Sheet modSheetMain04 (hidden)

Sheet modSheetMain05 (hidden)
